[Event "FIDE U16 Olympiad_boards_81-124"]
[Site "Eindhoven, Netherlands"]
[Date "2023.08.13"]
[Round "1.1"]
[White "Siva Kumar, Nirish Kumar"]
[Black "Suleimen, Ergali"]
[Result "0-1"]
[TimeControl "45min+10sec"]
[WhiteElo "1613"]
[BlackElo "2095"]

1. d4 {[%clk 00:45:03]} {[%emt 00:00:17]} Nf6 {[%clk 00:45:10]} {[%emt
00:00:10]} 2. c4 {[%clk 00:44:42]} {[%emt 00:00:31]} g6 {[%clk 00:45:14]}
{[%emt 00:00:06]} 3. Nc3 {[%clk 00:44:45]} {[%emt 00:00:07]} d5 {[%clk
00:45:12]} {[%emt 00:00:13]} 4. cxd5 {[%clk 00:44:47]} {[%emt 00:00:07]} Nxd5
{[%clk 00:45:19]} {[%emt 00:00:03]} 5. e4 {[%clk 00:44:56]} {[%emt 00:00:01]}
Nxc3 {[%clk 00:45:25]} {[%emt 00:00:04]} 6. bxc3 {[%clk 00:45:04]} {[%emt
00:00:02]} Bg7 {[%clk 00:45:32]} {[%emt 00:00:02]} 7. Bc4 {[%clk 00:45:13]}
{[%emt 00:00:02]} c5 {[%clk 00:45:05]} {[%emt 00:00:37]} 8. Ne2 {[%clk
00:45:21]} {[%emt 00:00:03]} O-O {[%clk 00:44:19]} {[%emt 00:00:54]} 9. Be3
{[%clk 00:45:29]} {[%emt 00:00:03]} Nc6 {[%clk 00:44:26]} {[%emt 00:00:04]} 10.
O-O {[%clk 00:45:34]} {[%emt 00:00:04]} b6 {[%clk 00:43:59]} {[%emt 00:00:37]}
11. Qd2 {[%clk 00:45:43]} {[%emt 00:00:01]} Bb7 {[%clk 00:42:19]} {[%emt
00:01:50]} 12. Rfd1 {[%clk 00:45:52]} {[%emt 00:00:02]} cxd4 {[%clk 00:42:14]}
{[%emt 00:00:15]} 13. cxd4 {[%clk 00:45:58]} {[%emt 00:00:04]} e6 {[%clk
00:42:22]} {[%emt 00:00:01]} 14. Rac1 {[%clk 00:43:37]} {[%emt 00:02:31]} Rc8
{[%clk 00:42:26]} {[%emt 00:00:06]} 15. Bh6 {[%clk 00:42:52]} {[%emt 00:00:55]}
Na5 {[%clk 00:37:05]} {[%emt 00:05:32]} 16. Bd3 {[%clk 00:40:42]} {[%emt
00:02:20]} Qd6 {[%clk 00:34:33]} {[%emt 00:02:41]} 17. Be3 {[%clk 00:31:54]}
{[%emt 00:08:58]} Rfd8 {[%clk 00:32:24]} {[%emt 00:02:19]} 18. Rxc8 {[%clk
00:29:33]} {[%emt 00:02:32]} Rxc8 {[%clk 00:31:08]} {[%emt 00:01:26]} 19. Rc1
{[%clk 00:26:25]} {[%emt 00:03:18]} Rc6 {[%clk 00:26:38]} {[%emt 00:04:39]} 20.
Rxc6 {[%clk 00:24:58]} {[%emt 00:01:37]} Qxc6 {[%clk 00:26:42]} {[%emt
00:00:06]} 21. Qc2 {[%clk 00:21:48]} {[%emt 00:03:20]} Qxc2 {[%clk 00:23:17]}
{[%emt 00:03:36]} 22. Bxc2 {[%clk 00:21:56]} {[%emt 00:00:01]} Nc4 {[%clk
00:23:25]} {[%emt 00:00:02]} 23. Bc1 {[%clk 00:20:58]} {[%emt 00:00:59]} Nd6
{[%clk 00:18:33]} {[%emt 00:05:11]} 24. e5 {[%clk 00:19:36]} {[%emt 00:01:32]}
Nf5 {[%clk 00:13:23]} {[%emt 00:05:20]} 25. Bb2 {[%clk 00:18:33]} {[%emt
00:01:13]} Kf8 {[%clk 00:13:01]} {[%emt 00:00:32]} 26. f3 {[%clk 00:18:26]}
{[%emt 00:00:18]} Ba6 {[%clk 00:10:53]} {[%emt 00:02:18]} 27. Nf4 {[%clk
00:14:35]} {[%emt 00:04:00]} Bh6 {[%clk 00:10:56]} {[%emt 00:00:07]} 28. g3
{[%clk 00:14:03]} {[%emt 00:00:43]} Bxf4 {[%clk 00:10:09]} {[%emt 00:00:56]} 29.
gxf4 {[%clk 00:14:09]} {[%emt 00:00:03]} Ne3 {[%clk 00:09:01]} {[%emt
00:01:19]} 30. Bb3 {[%clk 00:12:27]} {[%emt 00:01:53]} Bc4 {[%clk 00:08:47]}
{[%emt 00:00:24]} 31. Bxc4 {[%clk 00:10:07]} {[%emt 00:02:30]} Nxc4 {[%clk
00:08:53]} {[%emt 00:00:03]} 32. Bc1 {[%clk 00:10:17]} {[%emt 00:00:01]} Ke8
{[%clk 00:09:00]} {[%emt 00:00:03]} 33. Kf2 {[%clk 00:10:11]} {[%emt 00:00:16]}
Kd7 {[%clk 00:09:08]} {[%emt 00:00:02]} 34. a4 {[%clk 00:09:03]} {[%emt
00:01:18]} Kc6 {[%clk 00:09:13]} {[%emt 00:00:04]} 35. Kg3 {[%clk 00:09:02]}
{[%emt 00:00:11]} Kd5 {[%clk 00:07:51]} {[%emt 00:01:32]} 36. Kh4 {[%clk
00:08:51]} {[%emt 00:00:21]} h6 {[%clk 00:07:58]} {[%emt 00:00:03]} 37. f5
{[%clk 00:08:37]} {[%emt 00:00:25]} exf5 {[%clk 00:08:04]} {[%emt 00:00:04]} 38.
Bxh6 {[%clk 00:08:43]} {[%emt 00:00:04]} Kxd4 {[%clk 00:08:11]} {[%emt
00:00:02]} 39. e6 {[%clk 00:07:38]} {[%emt 00:01:15]} f6 {[%clk 00:07:21]}
{[%emt 00:01:00]} 40. Bf4 {[%clk 00:05:22]} {[%emt 00:02:27]} g5 {[%clk
00:06:54]} {[%emt 00:00:37]} 41. Kh5 {[%clk 00:04:58]} {[%emt 00:00:33]} gxf4
{[%clk 00:06:23]} {[%emt 00:00:41]} 42. Kg6 {[%emt 00:00:02]} Ke3 {[%clk
00:01:55]} {[%emt 00:04:37]} 43. e7 {[%clk 00:04:53]} {[%emt 00:00:24]} Nd6
{[%clk 00:02:04]} {[%emt 00:00:01]} 44. h4 {[%clk 00:03:54]} {[%emt 00:01:10]}
Kxf3 {[%clk 00:02:13]} {[%emt 00:00:01]} 45. h5 {[%clk 00:03:37]} {[%emt
00:00:27]} Kg4 {[%clk 00:01:19]} {[%emt 00:01:03]} 46. h6 {[%clk 00:03:41]}
{[%emt 00:00:07]} f3 {[%clk 00:01:28]} 47. h7 {[%clk 00:03:28]} {[%emt
00:00:24]} f2 {[%clk 00:01:37]} {[%emt 00:00:01]} 48. h8=Q {[%clk 00:03:36]}
{[%emt 00:00:02]} f1=Q {[%clk 00:01:45]} {[%emt 00:00:02]} 49. Qxf6 {[%clk
00:03:14]} {[%emt 00:00:31]} Qf4 {[%clk 00:01:43]} {[%emt 00:00:12]} 50. Kh7
{[%clk 00:01:51]} {[%emt 00:01:34]} Qh2+ {[%clk 00:00:54]} {[%emt 00:00:59]} 51.
Kg8 {[%clk 00:01:42]} {[%emt 00:00:19]} Qa2+ {[%clk 00:00:34]} {[%emt
00:00:30]} 52. Kh7 {[%clk 00:00:46]} {[%emt 00:01:05]} Qh2+ {[%clk 00:00:40]}
{[%emt 00:00:04]} 53. Kg8 {[%clk 00:00:55]} {[%emt 00:00:02]} Qa2+ {[%clk
00:00:48]} 54. Kh7 {[%clk 00:01:04]} {[%emt 00:00:01]} Qd5 {[%clk 00:00:40]}
{[%emt 00:00:18]} 55. Qg6+ {[%clk 00:01:09]} {[%emt 00:00:06]} Kf4 {[%clk
00:00:39]} {[%emt 00:00:09]} 56. Qh6+ {[%clk 00:00:51]} {[%emt 00:00:30]} Ke4
{[%clk 00:00:27]} {[%emt 00:00:20]} 57. Qh1+ {[%clk 00:00:38]} {[%emt
00:00:25]} Ke5 {[%clk 00:00:35]} {[%emt 00:00:01]} 58. Qa1+ {[%clk 00:00:28]}
{[%emt 00:00:21]} Ke6 {[%clk 00:00:23]} {[%emt 00:00:21]} 59. Qg7 {[%clk
00:00:18]} {[%emt 00:00:21]} Ne8 {[%clk 00:00:27]} {[%emt 00:00:05]} 60. Qh6+
{[%clk 00:00:11]} {[%emt 00:00:17]} Kxe7 {[%clk 00:00:33]} {[%emt 00:00:04]} 61.
Qe3+ {[%clk 00:00:20]} {[%emt 00:00:02]} Qe6 {[%clk 00:00:40]} {[%emt
00:00:03]} 62. Qa3+ {[%clk 00:00:29]} Kf7 {[%clk 00:00:47]} {[%emt 00:00:03]}
63. Qg3 {[%clk 00:00:16]} {[%emt 00:00:23]} Nf6 {[%clk 00:00:54]} {[%emt
00:00:03]} 64. Kh6 {[%clk 00:00:22]} {[%emt 00:00:05]} Ng4+ {[%clk 00:00:57]}
{[%emt 00:00:06]} 0-1

[Event "FIDE U16 Olympiad_boards_81-124"]
[Site "Eindhoven, Netherlands"]
[Date "2023.08.13"]
[Round "1.2"]
[White "Nurgaliyev, Sauat"]
[Black "Helmy, Muhammad Adnin Nuaym"]
[Result "1-0"]
[TimeControl "45min+10sec"]
[WhiteElo "2062"]
[BlackElo "1292"]

1. e4 {[%emt 00:00:14]} c5 {[%clk 00:45:10]} 2. Nf3 {[%clk 00:45:18]} {[%emt
00:00:06]} e6 {[%clk 00:45:08]} {[%emt 00:00:13]} 3. d4 {[%clk 00:45:18]}
{[%emt 00:00:10]} cxd4 {[%clk 00:45:11]} {[%emt 00:00:07]} 4. Nxd4 {[%clk
00:45:25]} {[%emt 00:00:03]} Nc6 {[%clk 00:45:10]} {[%emt 00:00:10]} 5. Nc3
{[%clk 00:45:21]} {[%emt 00:00:15]} Qc7 {[%clk 00:45:09]} {[%emt 00:00:11]} 6.
Be2 {[%clk 00:45:16]} {[%emt 00:00:16]} a6 {[%clk 00:44:14]} {[%emt 00:01:04]}
7. O-O {[%clk 00:45:04]} {[%emt 00:00:23]} Nf6 {[%clk 00:43:52]} {[%emt
00:00:31]} 8. Be3 {[%clk 00:44:47]} {[%emt 00:00:28]} Be7 {[%clk 00:43:04]}
{[%emt 00:00:57]} 9. f4 {[%clk 00:44:29]} {[%emt 00:00:27]} d6 {[%clk
00:41:49]} {[%emt 00:01:25]} 10. Qe1 {[%clk 00:43:37]} {[%emt 00:01:03]} O-O
{[%clk 00:38:02]} {[%emt 00:03:56]} 11. Kh1 {[%clk 00:43:41]} {[%emt 00:00:08]}
Nxd4 {[%clk 00:35:04]} {[%emt 00:03:07]} 12. Bxd4 {[%clk 00:43:48]} {[%emt
00:00:03]} b5 {[%clk 00:35:07]} {[%emt 00:00:08]} 13. a3 {[%clk 00:42:37]}
{[%emt 00:01:20]} Bb7 {[%clk 00:32:56]} {[%emt 00:02:21]} 14. Qg3 {[%clk
00:42:44]} {[%emt 00:00:03]} Ne8 {[%clk 00:16:51]} {[%emt 00:16:14]} 15. Bd3
{[%clk 00:38:50]} {[%emt 00:04:05]} Bf6 {[%clk 00:15:36]} {[%emt 00:01:25]} 16.
e5 {[%clk 00:30:33]} {[%emt 00:08:27]} dxe5 {[%clk 00:14:34]} {[%emt 00:01:12]}
17. fxe5 {[%clk 00:30:11]} {[%emt 00:00:33]} Be7 {[%clk 00:13:53]} {[%emt
00:00:50]} 18. Rae1 {[%clk 00:28:36]} {[%emt 00:01:44]} Bc5 {[%clk 00:11:31]}
{[%emt 00:02:32]} 19. Bxc5 {[%clk 00:23:15]} {[%emt 00:05:32]} Qxc5 {[%clk
00:11:26]} {[%emt 00:00:16]} 20. Qh4 {[%clk 00:19:36]} {[%emt 00:03:49]} g6
{[%clk 00:02:13]} {[%emt 00:09:21]} 21. Be4 {[%clk 00:19:00]} {[%emt 00:00:47]}
Bc6 {[%clk 00:01:12]} {[%emt 00:01:12]} 22. Qh6 {[%clk 00:17:09]} {[%emt
00:02:00]} Ra7 {[%clk 00:00:32]} {[%emt 00:00:50]} 23. Bxc6 {[%clk 00:14:39]}
{[%emt 00:02:40]} Qxc6 {[%clk 00:00:41]} {[%emt 00:00:02]} 24. Ne4 {[%clk
00:14:46]} {[%emt 00:00:02]} f5 {[%clk 00:00:22]} {[%emt 00:00:29]} 25. exf6
{[%clk 00:14:35]} {[%emt 00:00:22]} e5 {[%clk 00:00:16]} {[%emt 00:00:16]} 26.
h4 {[%clk 00:12:11]} {[%emt 00:02:34]} Nxf6 {[%emt 00:00:10]} 27. Qxf8+ {[%clk
00:12:12]} {[%emt 00:00:06]} Kxf8 {[%clk 00:00:21]} {[%emt 00:00:06]} 28. Rxf6+
{[%clk 00:12:21]} {[%emt 00:00:02]} Qxf6 {[%clk 00:00:27]} {[%emt 00:00:04]} 29.
Nxf6 {[%clk 00:12:29]} {[%emt 00:00:02]} 1-0

[Event "FIDE U16 Olympiad_boards_81-124"]
[Site "Eindhoven, Netherlands"]
[Date "2023.08.13"]
[Round "1.3"]
[White "Akhramsyah, Ashraf Alimuddin Zah"]
[Black "Moldagali, Beksultan"]
[Result "0-1"]
[TimeControl "45min+10sec"]
[WhiteElo "1350"]
[BlackElo "1883"]

1. e4 {[%clk 00:45:12]} {[%emt 00:00:07]} e5 {[%clk 00:45:16]} {[%emt
00:00:04]} 2. f4 {[%clk 00:45:15]} {[%emt 00:00:07]} d5 {[%clk 00:41:07]}
{[%emt 00:04:20]} 3. exd5 {[%clk 00:40:55]} {[%emt 00:04:30]} exf4 {[%clk
00:41:00]} {[%emt 00:00:16]} 4. Nf3 {[%clk 00:40:42]} {[%emt 00:00:23]} Nf6
{[%clk 00:39:33]} {[%emt 00:01:37]} 5. Nc3 {[%clk 00:39:44]} {[%emt 00:01:09]}
Nxd5 {[%clk 00:38:05]} {[%emt 00:01:37]} 6. Bc4 {[%clk 00:39:09]} {[%emt
00:00:46]} Nxc3 {[%clk 00:36:54]} {[%emt 00:01:20]} 7. dxc3 {[%clk 00:39:04]}
{[%emt 00:00:15]} Qxd1+ {[%clk 00:34:18]} {[%emt 00:02:46]} 8. Kxd1 {[%clk
00:39:12]} {[%emt 00:00:02]} Bd6 {[%clk 00:34:25]} {[%emt 00:00:04]} 9. Re1+
{[%clk 00:38:46]} {[%emt 00:00:35]} Kf8 {[%clk 00:32:25]} {[%emt 00:02:09]} 10.
h3 {[%clk 00:34:25]} {[%emt 00:04:32]} f6 {[%clk 00:28:30]} {[%emt 00:04:05]}
11. Nd4 {[%clk 00:33:39]} {[%emt 00:00:56]} Nc6 {[%clk 00:28:03]} {[%emt
00:00:38]} 12. Nb5 {[%clk 00:25:23]} {[%emt 00:08:26]} Be5 {[%clk 00:27:30]}
{[%emt 00:00:42]} 13. Rf1 {[%clk 00:23:15]} {[%emt 00:02:17]} g5 {[%clk
00:26:59]} {[%emt 00:00:42]} 14. Na3 {[%clk 00:16:47]} {[%emt 00:06:39]} Kg7
{[%clk 00:25:57]} {[%emt 00:01:11]} 15. Ke2 {[%clk 00:16:39]} {[%emt 00:00:18]}
Re8 {[%clk 00:25:35]} {[%emt 00:00:33]} 16. Kf2 {[%clk 00:15:50]} {[%emt
00:00:59]} Bd6 {[%clk 00:24:11]} {[%emt 00:01:34]} 17. Nb5 {[%clk 00:13:39]}
{[%emt 00:02:21]} Bc5+ {[%clk 00:24:11]} {[%emt 00:00:09]} 18. Nd4 {[%clk
00:13:23]} {[%emt 00:00:26]} Nxd4 {[%clk 00:24:07]} {[%emt 00:00:14]} 19. cxd4
{[%clk 00:13:26]} {[%emt 00:00:08]} Bxd4+ {[%clk 00:24:10]} {[%emt 00:00:06]}
20. Kf3 {[%clk 00:13:26]} {[%emt 00:00:11]} Bd7 {[%clk 00:22:37]} {[%emt
00:01:42]} 21. Bd5 {[%clk 00:11:31]} {[%emt 00:02:06]} Rad8 {[%clk 00:22:00]}
{[%emt 00:00:47]} 22. Bxb7 {[%clk 00:10:05]} {[%emt 00:01:35]} Bb5 {[%clk
00:21:51]} {[%emt 00:00:19]} 23. Bxf4 {[%clk 00:03:01]} {[%emt 00:07:15]} Be2+
{[%clk 00:21:48]} {[%emt 00:00:12]} 24. Kg3 {[%clk 00:03:04]} {[%emt 00:00:07]}
gxf4+ {[%clk 00:21:49]} {[%emt 00:00:09]} 25. Rxf4 {[%clk 00:02:31]} {[%emt
00:00:43]} Bxb2 {[%clk 00:21:22]} {[%emt 00:00:37]} 26. Re1 {[%clk 00:02:00]}
{[%emt 00:00:40]} Be5 {[%clk 00:21:26]} {[%emt 00:00:06]} 27. Kf2 {[%clk
00:01:51]} {[%emt 00:00:19]} Bxf4 {[%clk 00:21:28]} {[%emt 00:00:08]} 28. Rxe2
{[%clk 00:01:58]} {[%emt 00:00:04]} Rxe2+ {[%clk 00:21:22]} 29. Kxe2 {[%clk
00:01:58]} Rd2+ {[%clk 00:21:29]} {[%emt 00:00:22]} 30. Kf3 {[%clk 00:02:12]}
{[%emt 00:00:04]} Bd6 {[%clk 00:21:34]} {[%emt 00:00:04]} 31. Be4 {[%clk
00:02:09]} {[%emt 00:00:13]} h5 {[%clk 00:21:29]} {[%emt 00:00:14]} 32. Ke3
{[%clk 00:02:05]} {[%emt 00:00:15]} Rd1 {[%clk 00:21:28]} {[%emt 00:00:11]} 33.
Ke2 {[%clk 00:01:51]} {[%emt 00:00:24]} Ra1 {[%clk 00:21:29]} {[%emt 00:00:09]}
34. Bd5 {[%clk 00:01:58]} {[%emt 00:00:04]} f5 {[%clk 00:21:34]} {[%emt
00:00:05]} 35. Kd3 {[%clk 00:01:50]} {[%emt 00:00:18]} Kf6 {[%clk 00:21:40]}
{[%emt 00:00:03]} 36. Ke2 {[%clk 00:01:55]} {[%emt 00:00:05]} Ke5 {[%clk
00:21:46]} {[%emt 00:00:04]} 37. Bf7 {[%clk 00:02:00]} {[%emt 00:00:05]} h4
{[%clk 00:21:51]} {[%emt 00:00:05]} 38. Bb3 {[%clk 00:01:48]} {[%emt 00:00:22]}
Ke4 {[%clk 00:21:56]} {[%emt 00:00:05]} 39. c4 {[%clk 00:01:53]} {[%emt
00:00:05]} Rg1 {[%clk 00:21:58]} {[%emt 00:00:07]} 40. Bc2+ {[%clk 00:01:58]}
{[%emt 00:00:06]} Kf4 {[%clk 00:22:06]} {[%emt 00:00:02]} 41. Bd3 {[%clk
00:01:58]} {[%emt 00:00:10]} Rxg2+ {[%clk 00:22:11]} {[%emt 00:00:05]} 42. Ke1
{[%clk 00:02:06]} {[%emt 00:00:02]} Ke3 {[%clk 00:22:16]} {[%emt 00:00:05]} 43.
Bf1 {[%clk 00:02:11]} {[%emt 00:00:05]} Rd2 {[%clk 00:22:19]} {[%emt 00:00:07]}
44. Bg2 {[%clk 00:02:08]} {[%emt 00:00:14]} Bg3+ {[%clk 00:22:25]} {[%emt
00:00:03]} 45. Kf1 {[%clk 00:02:16]} {[%emt 00:00:02]} Rd1# {[%clk 00:22:33]}
{[%emt 00:00:02]} 0-1

[Event "FIDE U16 Olympiad_boards_81-124"]
[Site "Eindhoven, Netherlands"]
[Date "2023.08.13"]
[Round "1.4"]
[White "Kaldarova, Ayaulym"]
[Black "Mohd Tarmizi, Nur Uzma Bazilah"]
[Result "1/2-1/2"]
[TimeControl "45min+10sec"]
[WhiteElo "1845"]
[BlackElo "1367"]

1. Nf3 {[%clk 00:45:11]} {[%emt 00:00:09]} d5 {[%clk 00:45:06]} {[%emt
00:00:13]} 2. g3 {[%clk 00:45:14]} {[%emt 00:00:08]} c5 {[%clk 00:45:00]}
{[%emt 00:00:15]} 3. Bg2 {[%clk 00:45:14]} {[%emt 00:00:11]} Nf6 {[%clk
00:44:59]} {[%emt 00:00:11]} 4. O-O {[%clk 00:44:57]} {[%emt 00:00:27]} e6
{[%clk 00:44:32]} {[%emt 00:00:36]} 5. c4 {[%clk 00:43:18]} {[%emt 00:01:51]}
Be7 {[%clk 00:43:20]} {[%emt 00:01:21]} 6. cxd5 {[%clk 00:39:56]} {[%emt
00:03:32]} exd5 {[%clk 00:38:46]} {[%emt 00:04:44]} 7. d4 {[%clk 00:39:56]}
{[%emt 00:00:10]} O-O {[%clk 00:38:24]} {[%emt 00:00:31]} 8. Nc3 {[%clk
00:37:01]} {[%emt 00:03:07]} h6 {[%clk 00:32:22]} {[%emt 00:06:11]} 9. b3
{[%clk 00:33:14]} {[%emt 00:03:57]} Nc6 {[%clk 00:31:32]} {[%emt 00:00:59]} 10.
Bb2 {[%clk 00:32:59]} {[%emt 00:00:26]} Be6 {[%clk 00:30:42]} {[%emt 00:01:00]}
11. Rc1 {[%clk 00:32:14]} {[%emt 00:00:55]} Rc8 {[%clk 00:29:27]} {[%emt
00:01:24]} 12. e3 {[%clk 00:31:44]} {[%emt 00:00:42]} Re8 {[%clk 00:26:25]}
{[%emt 00:03:10]} 13. dxc5 {[%clk 00:27:47]} {[%emt 00:04:08]} Bxc5 {[%clk
00:17:13]} {[%emt 00:09:21]} 14. Ne2 {[%clk 00:18:59]} {[%emt 00:08:59]} Bb6
{[%clk 00:16:33]} {[%emt 00:00:47]} 15. Nf4 {[%clk 00:18:35]} {[%emt 00:00:37]}
Ne4 {[%clk 00:11:35]} {[%emt 00:05:06]} 16. Re1 {[%clk 00:16:56]} {[%emt
00:01:51]} Qd7 {[%clk 00:03:34]} {[%emt 00:08:10]} 17. a3 {[%clk 00:16:50]}
{[%emt 00:00:17]} Rcd8 {[%clk 00:03:24]} {[%emt 00:00:20]} 18. b4 {[%clk
00:15:58]} {[%emt 00:01:02]} a6 {[%clk 00:03:16]} {[%emt 00:00:17]} 19. Nd3
{[%clk 00:13:05]} {[%emt 00:03:05]} Bg4 {[%clk 00:02:26]} {[%emt 00:01:00]} 20.
Qb3 {[%clk 00:11:47]} {[%emt 00:01:28]} Bxf3 {[%clk 00:00:56]} {[%emt
00:01:40]} 21. Bxf3 {[%clk 00:11:55]} {[%emt 00:00:02]} d4 {[%clk 00:01:02]}
{[%emt 00:00:03]} 22. exd4 {[%clk 00:05:41]} {[%emt 00:06:24]} Nxd4 {[%clk
00:00:49]} {[%emt 00:00:23]} 23. Bxd4 {[%clk 00:05:46]} {[%emt 00:00:06]} Qxd4
{[%clk 00:00:52]} {[%emt 00:00:07]} 24. Bxe4 {[%clk 00:05:26]} {[%emt
00:00:30]} Rxe4 {[%clk 00:00:57]} {[%emt 00:00:04]} 25. Rxe4 {[%clk 00:05:30]}
{[%emt 00:00:06]} Qxe4 {[%clk 00:01:02]} {[%emt 00:00:05]} 26. Nc5 {[%clk
00:05:19]} {[%emt 00:00:21]} Qe2 {[%clk 00:00:41]} {[%emt 00:00:31]} 27. Kg2
{[%clk 00:04:11]} {[%emt 00:01:19]} Rd2 {[%clk 00:00:40]} {[%emt 00:00:09]} 28.
Qf3 {[%clk 00:04:12]} {[%emt 00:00:10]} Qxf3+ {[%clk 00:00:43]} {[%emt
00:00:07]} 29. Kxf3 {[%clk 00:04:20]} {[%emt 00:00:02]} Bxc5 {[%clk 00:00:49]}
{[%emt 00:00:04]} 30. Rxc5 {[%clk 00:04:06]} {[%emt 00:00:25]} Rd3+ {[%clk
00:00:56]} {[%emt 00:00:02]} 31. Ke2 {[%clk 00:03:21]} {[%emt 00:00:55]} Rxa3
{[%clk 00:01:03]} {[%emt 00:00:03]} 32. Rc8+ {[%clk 00:03:30]} {[%emt
00:00:02]} Kh7 {[%clk 00:01:12]} {[%emt 00:00:01]} 33. Rc7 {[%clk 00:03:38]}
{[%emt 00:00:02]} Ra2+ {[%clk 00:01:13]} {[%emt 00:00:08]} 34. Ke3 {[%clk
00:03:46]} {[%emt 00:00:02]} Ra3+ {[%clk 00:01:11]} {[%emt 00:00:12]} 35. Ke2
{[%clk 00:03:53]} {[%emt 00:00:04]} Kg6 {[%clk 00:00:28]} {[%emt 00:00:52]} 36.
Rxb7 {[%clk 00:04:00]} {[%emt 00:00:03]} f6 {[%emt 00:00:18]} 37. Rb6 {[%clk
00:03:58]} Ra4 {[%clk 00:00:35]} {[%emt 00:00:07]} 38. Ke3 {[%clk 00:03:33]}
{[%emt 00:00:36]} a5 {[%clk 00:00:23]} {[%emt 00:00:22]} 39. bxa5 {[%clk
00:02:52]} {[%emt 00:00:50]} Rxa5 {[%clk 00:00:30]} {[%emt 00:00:02]} 40. h4
{[%clk 00:02:42]} {[%emt 00:00:22]} 1/2-1/2

[Event "FIDE U16 Olympiad_boards_81-124"]
[Site "Eindhoven, Netherlands"]
[Date "2023.08.13"]
[Round "1.5"]
[White "Makridis, Dimitrios"]
[Black "Medina, Joshua"]
[Result "1-0"]
[TimeControl "45min+10sec"]
[WhiteElo "2264"]
[BlackElo "1644"]

1. e4 {[%clk 00:45:16]} {[%emt 00:00:03]} c5 {[%clk 00:45:10]} {[%emt
00:00:11]} 2. Nf3 {[%clk 00:45:21]} {[%emt 00:00:05]} Nc6 {[%clk 00:45:17]}
{[%emt 00:00:03]} 3. Bb5 {[%clk 00:45:26]} {[%emt 00:00:04]} e5 {[%clk
00:45:09]} {[%emt 00:00:19]} 4. O-O {[%clk 00:45:14]} {[%emt 00:00:21]} Bd6
{[%clk 00:45:04]} {[%emt 00:00:15]} 5. c3 {[%clk 00:45:12]} {[%emt 00:00:13]}
a6 {[%clk 00:44:39]} {[%emt 00:00:36]} 6. Bxc6 {[%clk 00:41:45]} {[%emt
00:03:36]} dxc6 {[%clk 00:43:40]} {[%emt 00:01:09]} 7. d4 {[%clk 00:41:49]}
{[%emt 00:00:05]} cxd4 {[%clk 00:43:16]} {[%emt 00:00:36]} 8. cxd4 {[%clk
00:41:54]} {[%emt 00:00:04]} Bg4 {[%clk 00:42:48]} {[%emt 00:00:38]} 9. dxe5
{[%clk 00:41:55]} {[%emt 00:00:09]} Bxf3 {[%clk 00:42:15]} {[%emt 00:00:44]} 10.
Qxd6 {[%clk 00:36:04]} {[%emt 00:06:00]} Bxe4 {[%clk 00:40:32]} {[%emt
00:01:53]} 11. Qb4 {[%clk 00:36:09]} {[%emt 00:00:04]} Bxb1 {[%clk 00:39:53]}
{[%emt 00:00:50]} 12. Rxb1 {[%clk 00:36:15]} {[%emt 00:00:04]} Qc7 {[%clk
00:37:11]} {[%emt 00:02:52]} 13. Qg4 {[%clk 00:31:47]} {[%emt 00:04:37]} Kf8
{[%clk 00:25:39]} {[%emt 00:11:42]} 14. Be3 {[%clk 00:31:21]} {[%emt 00:00:37]}
b6 {[%clk 00:23:24]} {[%emt 00:02:26]} 15. Rbd1 {[%clk 00:31:02]} {[%emt
00:00:27]} h5 {[%clk 00:19:39]} {[%emt 00:03:55]} 16. Qf3 {[%clk 00:28:58]}
{[%emt 00:02:14]} Ne7 {[%clk 00:19:26]} {[%emt 00:00:25]} 17. e6 {[%clk
00:27:21]} {[%emt 00:01:46]} Nd5 {[%clk 00:18:14]} {[%emt 00:01:23]} 18. Bxb6
{[%clk 00:27:14]} {[%emt 00:00:16]} Qb7 {[%clk 00:14:58]} {[%emt 00:03:26]} 19.
Rfe1 {[%emt 00:09:36]} Re8 {[%clk 00:12:02]} 20. Bd4 {[%clk 00:16:07]} {[%emt
00:04:56]} Rh6 {[%clk 00:07:14]} {[%emt 00:04:59]} 21. exf7 {[%clk 00:15:32]}
{[%emt 00:00:45]} Rxe1+ {[%clk 00:05:11]} {[%emt 00:02:13]} 22. Rxe1 {[%clk
00:15:41]} {[%emt 00:00:01]} Qxf7 {[%clk 00:05:07]} {[%emt 00:00:14]} 23. Qa3+
{[%clk 00:15:01]} {[%emt 00:00:49]} Kg8 {[%clk 00:05:02]} {[%emt 00:00:17]} 24.
Qxa6 {[%clk 00:14:58]} {[%emt 00:00:13]} Rg6 {[%clk 00:03:56]} {[%emt
00:01:15]} 25. g3 {[%clk 00:09:56]} {[%emt 00:05:12]} h4 {[%clk 00:02:34]}
{[%emt 00:01:33]} 26. Qc8+ {[%clk 00:09:31]} {[%emt 00:00:32]} Kh7 {[%clk
00:02:40]} {[%emt 00:00:06]} 27. Re8 {[%clk 00:09:38]} {[%emt 00:00:04]} Rd6
{[%clk 00:00:26]} {[%emt 00:02:23]} 28. Rh8+ {[%clk 00:09:42]} {[%emt
00:00:06]} Kg6 {[%clk 00:00:35]} {[%emt 00:00:01]} 29. Qg4# {[%clk 00:09:45]}
{[%emt 00:00:07]} 1-0